[Event "*** Titled Tuesday Blitz"]
[Site "Chess.com"]
[Date "2018.12.04"]
[Round "4"]
[White "GMG"]
[Black "sergiochess83"]
[Result "1/2-1/2"]
[WhiteElo "2679"]
[BlackElo "2761"]
[TimeControl "180+2"]
[EndTime "13:48:15 PST"]
[Termination "Game drawn by agreement"]

1. d4 {[%clk 0:03:01.9]} 1... Nf6 {[%clk 0:02:59.2]} 2. Bf4 {[%clk 0:03:02.6]}
2... g6 {[%clk 0:02:59]} 3. Nc3 {[%clk 0:03:03.6]} 3... d5 {[%clk 0:02:58.3]} 4.
e3 {[%clk 0:03:04.9]} 4... Bg7 {[%clk 0:02:55.6]} 5. h4 {[%clk 0:03:06.4]} 5...
O-O {[%clk 0:02:47.6]} 6. h5 {[%clk 0:03:07.1]} 6... c5 {[%clk 0:02:47.2]} 7.
hxg6 {[%clk 0:03:04.4]} 7... hxg6 {[%clk 0:02:48]} 8. dxc5 {[%clk 0:02:59]} 8...
Qa5 {[%clk 0:02:48.3]} 9. Qd2 {[%clk 0:02:49]} 9... Qxc5 {[%clk 0:02:43.7]} 10.
O-O-O {[%clk 0:02:39.5]} 10... Nc6 {[%clk 0:02:37.6]} 11. Bh6 {[%clk 0:02:26.5]}
11... Ne4 {[%clk 0:02:33.7]} 12. Nxe4 {[%clk 0:02:25.6]} 12... dxe4 {[%clk
0:02:34.7]} 13. Bxg7 {[%clk 0:02:25.8]} 13... Kxg7 {[%clk 0:02:36.6]} 14. Ne2
{[%clk 0:02:25.3]} 14... Be6 {[%clk 0:02:33]} 15. Qc3+ {[%clk 0:02:25.8]} 15...
Qxc3 {[%clk 0:02:32.5]} 16. Nxc3 {[%clk 0:02:27.7]} 16... f5 {[%clk 0:02:33.9]}
17. Be2 {[%clk 0:01:57.4]} 17... Rfd8 {[%clk 0:02:26.4]} 18. f4 {[%clk
0:01:33.6]} 18... exf3 {[%clk 0:01:56.6]} 19. Bxf3 {[%clk 0:01:33.3]} 19... Rab8
{[%clk 0:01:55.6]} 20. b3 {[%clk 0:01:10.1]} 20... g5 {[%clk 0:01:43.4]} 21. Na4
{[%clk 0:01:02.9]} 21... g4 {[%clk 0:01:20]} 22. Bxc6 {[%clk 0:01:03.2]} 22...
bxc6 {[%clk 0:01:20.7]} 23. c4 {[%clk 0:00:59.4]} 23... Rxd1+ {[%clk 0:01:15.2]}
24. Kxd1 {[%clk 0:01:00.3]} 24... Rd8+ {[%clk 0:01:11.5]} 25. Ke2 {[%clk
0:00:59.1]} 25... Bc8 {[%clk 0:01:10.3]} 26. Nc5 {[%clk 0:00:58]} 26... e5
{[%clk 0:01:09.7]} 27. g3 {[%clk 0:00:58.3]} 27... Kg6 {[%clk 0:01:08.3]} 28. b4
{[%clk 0:00:57.6]} 28... a6 {[%clk 0:00:53.8]} 29. a4 {[%clk 0:00:57.7]} 1/2-1/2

[Event "*** Titled Tuesday Blitz"]
[Site "Chess.com"]
[Date "2018.12.04"]
[Round "4"]
[White "SanchezKelvin"]
[Black "Winehouse83"]
[Result "1-0"]
[WhiteElo "2488"]
[BlackElo "2442"]
[TimeControl "180+2"]
[EndTime "13:48:19 PST"]
[Termination "SanchezKelvin won by resignation"]

1. e4 {[%clk 0:03:01.9]} 1... e5 {[%clk 0:03:00.6]} 2. Nf3 {[%clk 0:03:02.9]}
2... Nc6 {[%clk 0:03:01.1]} 3. d4 {[%clk 0:03:04.1]} 3... exd4 {[%clk
0:03:02.2]} 4. Nxd4 {[%clk 0:03:04.1]} 4... Nf6 {[%clk 0:03:02.7]} 5. Nxc6
{[%clk 0:03:04.7]} 5... bxc6 {[%clk 0:03:04.6]} 6. e5 {[%clk 0:03:05.6]} 6...
Qe7 {[%clk 0:03:05]} 7. Qe2 {[%clk 0:03:06.3]} 7... Nd5 {[%clk 0:03:06]} 8. c4
{[%clk 0:03:07.8]} 8... Ba6 {[%clk 0:03:07.2]} 9. b3 {[%clk 0:03:08.7]} 9... g6
{[%clk 0:03:07.8]} 10. Bb2 {[%clk 0:03:09.2]} 10... Bg7 {[%clk 0:03:09.2]} 11.
Nd2 {[%clk 0:03:10.1]} 11... O-O {[%clk 0:03:08.2]} 12. O-O-O {[%clk 0:03:10.2]}
12... Rae8 {[%clk 0:02:59.8]} 13. Qe4 {[%clk 0:03:10.7]} 13... Nb6 {[%clk
0:02:59.1]} 14. f4 {[%clk 0:03:10.8]} 14... d5 {[%clk 0:02:59.1]} 15. Qc2 {[%clk
0:03:10.2]} 15... f6 {[%clk 0:02:45.7]} 16. h4 {[%clk 0:02:52.3]} 16... fxe5
{[%clk 0:02:44.6]} 17. h5 {[%clk 0:02:52.1]} 17... e4 {[%clk 0:02:45.5]} 18.
hxg6 {[%clk 0:02:51.9]} 18... hxg6 {[%clk 0:02:44.1]} 19. c5 {[%clk 0:02:49.9]}
19... Bxf1 {[%clk 0:02:41.5]} 20. cxb6 {[%clk 0:02:49.8]} 20... Bd3 {[%clk
0:02:42.4]} 21. Qxc6 {[%clk 0:02:44.6]} 21... Bxb2+ {[%clk 0:01:40.3]} 22. Kxb2
{[%clk 0:02:42.6]} 22... Qd6 {[%clk 0:01:41.7]} 23. Qxd6 {[%clk 0:01:55.2]}
23... cxd6 {[%clk 0:01:42.2]} 24. bxa7 {[%clk 0:01:54.6]} 24... Re7 {[%clk
0:01:21.6]} 25. Rh6 {[%clk 0:01:51.8]} 25... e3 {[%clk 0:00:58.5]} 26. Nf3
{[%clk 0:01:49.4]} 26... Be4 {[%clk 0:00:31.2]} 27. Rdh1 {[%clk 0:01:48.1]}
27... Rxa7 {[%clk 0:00:15.6]} 28. Rh8+ {[%clk 0:01:45.5]} 28... Kf7 {[%clk
0:00:15.2]} 29. R1h7+ {[%clk 0:01:43.6]} 29... Ke6 {[%clk 0:00:16.2]} 30. Nd4+
{[%clk 0:01:41.7]} 30... Kf6 {[%clk 0:00:16.8]} 31. Rxf8+ {[%clk 0:01:38.5]} 1-0

[Event "*** Titled Tuesday Blitz"]
[Site "Chess.com"]
[Date "2018.12.04"]
[Round "4"]
[White "cherryandmint"]
[Black "Jbd735"]
[Result "0-1"]
[WhiteElo "2703"]
[BlackElo "2522"]
[TimeControl "180+2"]
[EndTime "13:48:32 PST"]
[Termination "Jbd735 won by resignation"]

1. e4 {[%clk 0:03:01.9]} 1... e5 {[%clk 0:03:00.7]} 2. Nf3 {[%clk 0:03:02.4]}
2... Nc6 {[%clk 0:03:01.3]} 3. Bc4 {[%clk 0:03:03.4]} 3... Bc5 {[%clk
0:03:01.3]} 4. c3 {[%clk 0:03:04.4]} 4... Nf6 {[%clk 0:03:01.5]} 5. d3 {[%clk
0:03:06]} 5... a6 {[%clk 0:03:01.5]} 6. O-O {[%clk 0:03:06.7]} 6... h6 {[%clk
0:03:00.2]} 7. a4 {[%clk 0:03:06.8]} 7... Ba7 {[%clk 0:02:55]} 8. Re1 {[%clk
0:03:07.8]} 8... O-O {[%clk 0:02:54.2]} 9. Nbd2 {[%clk 0:03:07.6]} 9... d6
{[%clk 0:02:50.9]} 10. Nf1 {[%clk 0:03:08.7]} 10... Re8 {[%clk 0:02:49]} 11. h3
{[%clk 0:03:05.5]} 11... Be6 {[%clk 0:02:48.5]} 12. Bxe6 {[%clk 0:03:06.7]}
12... Rxe6 {[%clk 0:02:48.4]} 13. Ng3 {[%clk 0:03:04.4]} 13... d5 {[%clk
0:02:41.8]} 14. Qc2 {[%clk 0:03:05.6]} 14... Qd7 {[%clk 0:02:21.5]} 15. b4
{[%clk 0:02:56.8]} 15... Rd8 {[%clk 0:01:57.9]} 16. Bb2 {[%clk 0:02:41.1]} 16...
dxe4 {[%clk 0:01:48.7]} 17. dxe4 {[%clk 0:02:41.2]} 17... Qd3 {[%clk 0:01:49.8]}
18. Qb3 {[%clk 0:02:22.3]} 18... Red6 {[%clk 0:01:39.6]} 19. b5 {[%clk
0:02:02.8]} 19... Na5 {[%clk 0:01:26.4]} 20. Qb4 {[%clk 0:02:01]} 20... Nc4
{[%clk 0:01:24.4]} 21. Rac1 {[%clk 0:01:25.6]} 21... a5 {[%clk 0:01:00.2]} 22.
Qb3 {[%clk 0:01:24.1]} 22... Nd2 {[%clk 0:00:59.4]} 23. Nxd2 {[%clk 0:01:22.9]}
23... Qxg3 {[%clk 0:00:51.5]} 24. b6 {[%clk 0:00:38.2]} 24... Rxb6 {[%clk
0:00:51.3]} 0-1

[Event "*** Titled Tuesday Blitz"]
[Site "Chess.com"]
[Date "2018.12.04"]
[Round "4"]
[White "SerGo055"]
[Black "ddtru"]
[Result "1-0"]
[WhiteElo "2455"]
[BlackElo "2321"]
[TimeControl "180+2"]
[EndTime "13:48:39 PST"]
[Termination "SerGo055 won on time"]

1. d4 {[%clk 0:03:01.9]} 1... d5 {[%clk 0:03:00.4]} 2. Nf3 {[%clk 0:03:03.3]}
2... Nf6 {[%clk 0:03:00.7]} 3. c4 {[%clk 0:03:04.5]} 3... c6 {[%clk 0:03:01.9]}
4. Nc3 {[%clk 0:03:05.8]} 4... dxc4 {[%clk 0:03:02]} 5. a4 {[%clk 0:03:06.3]}
5... Bf5 {[%clk 0:03:02.5]} 6. e3 {[%clk 0:03:07.3]} 6... e6 {[%clk 0:03:03.6]}
7. Bxc4 {[%clk 0:03:08.6]} 7... Nbd7 {[%clk 0:03:04.3]} 8. O-O {[%clk
0:03:06.5]} 8... Bb4 {[%clk 0:03:04.9]} 9. Qb3 {[%clk 0:03:07.2]} 9... a5 {[%clk
0:02:59.9]} 10. Nh4 {[%clk 0:03:00.5]} 10... Bg4 {[%clk 0:02:52.7]} 11. h3
{[%clk 0:03:00.4]} 11... Bh5 {[%clk 0:02:53.3]} 12. Na2 {[%clk 0:02:30.6]} 12...
Be7 {[%clk 0:02:11.6]} 13. Qxb7 {[%clk 0:02:11.3]} 13... Rb8 {[%clk 0:02:11.8]}
14. Qxc6 {[%clk 0:02:12.1]} 14... Rc8 {[%clk 0:02:12.9]} 15. Qb5 {[%clk
0:02:12.9]} 15... Rb8 {[%clk 0:02:02.8]} 16. Qg5 {[%clk 0:02:11.8]} 16... O-O
{[%clk 0:01:03.9]} 17. Nc3 {[%clk 0:01:57.7]} 17... h6 {[%clk 0:00:46.3]} 18.
Qg3 {[%clk 0:01:48.6]} 18... Ne4 {[%clk 0:00:19.4]} 19. Nxe4 {[%clk 0:01:48.4]}
19... Bxh4 {[%clk 0:00:20.8]} 20. Qf4 {[%clk 0:01:39.4]} 20... Kh8 {[%clk
0:00:16.6]} 21. b3 {[%clk 0:01:30.2]} 21... f5 {[%clk 0:00:17]} 22. Ng3 {[%clk
0:01:23.8]} 22... Bf7 {[%clk 0:00:17.7]} 23. Ba3 {[%clk 0:01:21.6]} 23... Re8
{[%clk 0:00:17]} 24. Nxf5 {[%clk 0:01:15.1]} 24... exf5 {[%clk 0:00:08.7]} 25.
Bxf7 {[%clk 0:01:15.2]} 25... Re4 {[%clk 0:00:08.7]} 26. Qxf5 {[%clk 0:01:16.4]}
26... Nf6 {[%clk 0:00:03.7]} 27. Rac1 {[%clk 0:01:12.5]} 1-0

[Event "*** Titled Tuesday Blitz"]
[Site "Chess.com"]
[Date "2018.12.04"]
[Round "4"]
[White "chesstatour"]
[Black "BillForster"]
[Result "1-0"]
[WhiteElo "2094"]
[BlackElo "1720"]
[TimeControl "180+2"]
[EndTime "13:48:44 PST"]
[Termination "chesstatour won by resignation"]

1. c4 {[%clk 0:03:01.9]} 1... c6 {[%clk 0:02:59.9]} 2. d4 {[%clk 0:03:01.7]}
2... d5 {[%clk 0:03:00.7]} 3. g3 {[%clk 0:03:01.3]} 3... Bf5 {[%clk 0:02:52.5]}
4. Bg2 {[%clk 0:03:01.4]} 4... e6 {[%clk 0:02:52.6]} 5. Nf3 {[%clk 0:02:58.1]}
5... Nf6 {[%clk 0:02:49]} 6. O-O {[%clk 0:02:58.6]} 6... Bd6 {[%clk 0:02:37.4]}
7. Qb3 {[%clk 0:02:41.3]} 7... Qc8 {[%clk 0:02:34.1]} 8. Nc3 {[%clk 0:02:29.1]}
8... h6 {[%clk 0:02:31.3]} 9. Bd2 {[%clk 0:02:04.7]} 9... O-O {[%clk 0:02:31.4]}
10. Rac1 {[%clk 0:02:02.4]} 10... dxc4 {[%clk 0:02:13.9]} 11. Qxc4 {[%clk
0:02:01.3]} 11... Nbd7 {[%clk 0:02:09.7]} 12. Bf4 {[%clk 0:01:39]} 12... Bxf4
{[%clk 0:02:06.9]} 13. gxf4 {[%clk 0:01:40.9]} 13... Nb6 {[%clk 0:02:02.8]} 14.
Qb3 {[%clk 0:01:39.4]} 14... Nfd5 {[%clk 0:01:45.5]} 15. e3 {[%clk 0:01:24.7]}
15... Bh7 {[%clk 0:01:36.1]} 16. a4 {[%clk 0:01:13.5]} 16... Qc7 {[%clk
0:01:25.8]} 17. a5 {[%clk 0:00:51.3]} 17... Nd7 {[%clk 0:01:25.2]} 18. Nxd5
{[%clk 0:00:46.9]} 18... exd5 {[%clk 0:01:23.3]} 19. Qxd5 {[%clk 0:00:44.4]}
19... Nf6 {[%clk 0:01:21.6]} 20. Qe5 {[%clk 0:00:37]} 20... Qd7 {[%clk 0:01:15]}
21. Qc5 {[%clk 0:00:30]} 21... Rfe8 {[%clk 0:01:13.8]} 22. Ne5 {[%clk
0:00:29.2]} 22... Qf5 {[%clk 0:01:09.1]} 23. a6 {[%clk 0:00:28.6]} 23... Rab8
{[%clk 0:01:04.7]} 24. axb7 {[%clk 0:00:28.1]} 24... Rxb7 {[%clk 0:01:04.9]} 25.
b4 {[%clk 0:00:14.6]} 25... Rc8 {[%clk 0:01:02.6]} 26. Nxc6 {[%clk 0:00:12.8]}
26... Qxc5 {[%clk 0:01:01]} 27. bxc5 {[%clk 0:00:11.6]} 27... Rb2 {[%clk
0:01:00]} 28. Ne7+ {[%clk 0:00:11.9]} 1-0

[Event "*** Titled Tuesday Blitz"]
[Site "Chess.com"]
[Date "2018.12.04"]
[Round "4"]
[White "chess4life23"]
[Black "731291"]
[Result "0-1"]
[WhiteElo "2394"]
[BlackElo "2590"]
[TimeControl "180+2"]
[EndTime "13:48:44 PST"]
[Termination "731291 won by resignation"]

1. d4 {[%clk 0:03:01.9]} 1... Nf6 {[%clk 0:03:00.5]} 2. c4 {[%clk 0:03:02.4]}
2... e6 {[%clk 0:03:00.3]} 3. Nf3 {[%clk 0:03:03.3]} 3... b6 {[%clk 0:03:00.5]}
4. a3 {[%clk 0:03:04]} 4... c5 {[%clk 0:02:58.3]} 5. d5 {[%clk 0:03:04.5]} 5...
Ba6 {[%clk 0:02:59.8]} 6. b3 {[%clk 0:02:26.7]} 6... exd5 {[%clk 0:02:59.9]} 7.
cxd5 {[%clk 0:02:28.6]} 7... d6 {[%clk 0:03:01]} 8. Nc3 {[%clk 0:02:29.2]} 8...
g6 {[%clk 0:03:01.7]} 9. Bb2 {[%clk 0:02:30.3]} 9... Bg7 {[%clk 0:03:02.6]} 10.
g3 {[%clk 0:02:23.1]} 10... O-O {[%clk 0:02:59.1]} 11. Bg2 {[%clk 0:02:24.1]}
11... Re8 {[%clk 0:02:56.5]} 12. O-O {[%clk 0:02:05.2]} 12... Ne4 {[%clk
0:02:40.9]} 13. Qc2 {[%clk 0:01:41.7]} 13... Nxc3 {[%clk 0:02:38.5]} 14. Bxc3
{[%clk 0:01:43.6]} 14... Rxe2 {[%clk 0:02:15.3]} 15. Nd2 {[%clk 0:01:44.7]}
15... Rxd2 {[%clk 0:02:07.1]} 16. Qxd2 {[%clk 0:01:41.2]} 16... Bxc3 {[%clk
0:02:01.7]} 17. Qxc3 {[%clk 0:01:41.5]} 17... Bxf1 {[%clk 0:02:03.2]} 18. Bxf1
{[%clk 0:01:38.1]} 18... Nd7 {[%clk 0:02:04.6]} 19. Re1 {[%clk 0:01:38.6]} 19...
Qf6 {[%clk 0:01:56.8]} 20. Qe3 {[%clk 0:01:18.5]} 20... Qd4 {[%clk 0:01:23.5]}
21. Qe7 {[%clk 0:00:30.7]} 21... Ne5 {[%clk 0:01:20.7]} 22. Bg2 {[%clk
0:00:32.1]} 22... Ng4 {[%clk 0:01:01.7]} 23. Qe2 {[%clk 0:00:09.9]} 23... Nf6
{[%clk 0:00:57.9]} 24. Qe7 {[%clk 0:00:08]} 24... Re8 {[%clk 0:00:53.4]} 0-1

[Event "*** Titled Tuesday Blitz"]
[Site "Chess.com"]
[Date "2018.12.04"]
[Round "4"]
[White "Satscho"]
[Black "BIG_Pirate"]
[Result "0-1"]
[WhiteElo "2309"]
[BlackElo "2367"]
[TimeControl "180+2"]
[EndTime "13:48:49 PST"]
[Termination "BIG_Pirate won by resignation"]

1. e4 {[%clk 0:02:03.6]} 1... d5 {[%clk 0:02:59.6]} 2. exd5 {[%clk 0:01:59.8]}
2... Qxd5 {[%clk 0:03:01.5]} 3. Nc3 {[%clk 0:02:00.9]} 3... Qa5 {[%clk 0:03:03]}
4. d4 {[%clk 0:02:01.8]} 4... Nf6 {[%clk 0:03:04.1]} 5. Nf3 {[%clk 0:01:59.2]}
5... Bg4 {[%clk 0:03:05]} 6. h3 {[%clk 0:01:57.8]} 6... Bh5 {[%clk 0:03:06.1]}
7. g4 {[%clk 0:01:58.9]} 7... Bg6 {[%clk 0:03:07.1]} 8. Ne5 {[%clk 0:02:00.5]}
8... e6 {[%clk 0:03:07.1]} 9. Bd2 {[%clk 0:02:00.2]} 9... Qb6 {[%clk 0:02:49.5]}
10. Bg2 {[%clk 0:01:39.1]} 10... c6 {[%clk 0:02:49.5]} 11. Nxg6 {[%clk 0:01:13]}
11... hxg6 {[%clk 0:02:51.4]} 12. O-O {[%clk 0:01:13.9]} 12... Qxd4 {[%clk
0:02:51.5]} 13. Qe2 {[%clk 0:01:14.7]} 13... Bd6 {[%clk 0:02:36]} 14. Be3 {[%clk
0:01:12]} 14... Qe5 {[%clk 0:02:36.7]} 15. f4 {[%clk 0:01:13.1]} 15... Qa5
{[%clk 0:02:37.1]} 16. Rad1 {[%clk 0:01:13]} 16... Bc5 {[%clk 0:02:37.2]} 17. g5
{[%clk 0:01:09.6]} 17... Nh5 {[%clk 0:02:34.1]} 18. Ne4 {[%clk 0:01:09.4]} 18...
Bxe3+ {[%clk 0:02:29.6]} 19. Qxe3 {[%clk 0:01:11.3]} 19... O-O {[%clk
0:02:30.7]} 20. Bf3 {[%clk 0:01:09.4]} 20... Na6 {[%clk 0:02:22.8]} 21. Bxh5
{[%clk 0:01:10.3]} 21... gxh5 {[%clk 0:02:23.6]} 22. g6 {[%clk 0:00:57.1]} 22...
fxg6 {[%clk 0:02:20.6]} 23. Ng5 {[%clk 0:00:57.8]} 23... Qc5 {[%clk 0:02:14.7]}
24. Rd4 {[%clk 0:00:50.7]} 24... Nc7 {[%clk 0:02:13.3]} 25. b4 {[%clk 0:00:49]}
25... Qf5 {[%clk 0:02:11.3]} 26. Rd7 {[%clk 0:00:46.9]} 26... Nd5 {[%clk
0:02:09.9]} 27. Qd4 {[%clk 0:00:41.7]} 27... Qf6 {[%clk 0:01:49.9]} 28. Qe4
{[%clk 0:00:35.9]} 28... Nxf4 {[%clk 0:01:39]} 29. Rxf4 {[%clk 0:00:08.8]} 29...
Qxf4 {[%clk 0:01:39.8]} 30. Qxe6+ {[%clk 0:00:09.4]} 30... Kh8 {[%clk
0:01:39.1]} 31. Nf7+ {[%clk 0:00:08.5]} 31... Kh7 {[%clk 0:01:24.6]} 32. Rxb7
{[%clk 0:00:09.5]} 32... Rae8 {[%clk 0:01:20.5]} 0-1

[Event "*** Titled Tuesday Blitz"]
[Site "Chess.com"]
[Date "2018.12.04"]
[Round "4"]
[White "m3alam"]
[Black "Iyael"]
[Result "0-1"]
[WhiteElo "2171"]
[BlackElo "2126"]
[TimeControl "180+2"]
[EndTime "13:48:53 PST"]
[Termination "Iyael won by resignation"]

1. d4 {[%clk 0:02:54.7]} 1... Nf6 {[%clk 0:02:59.5]} 2. Nf3 {[%clk 0:02:54.9]}
2... g6 {[%clk 0:02:59]} 3. g3 {[%clk 0:02:56.8]} 3... Bg7 {[%clk 0:02:59.8]} 4.
Bg2 {[%clk 0:02:58.7]} 4... O-O {[%clk 0:03:00.5]} 5. O-O {[%clk 0:03:00.6]}
5... d6 {[%clk 0:03:00.2]} 6. c4 {[%clk 0:03:02.4]} 6... Nbd7 {[%clk 0:03:00]}
7. Nc3 {[%clk 0:03:04.3]} 7... e5 {[%clk 0:03:00.9]} 8. h3 {[%clk 0:03:01.5]}
8... c6 {[%clk 0:03:00.7]} 9. e4 {[%clk 0:03:02.7]} 9... Qb6 {[%clk 0:03:01.2]}
10. c5 {[%clk 0:03:01.9]} 10... dxc5 {[%clk 0:02:59.8]} 11. dxe5 {[%clk
0:03:03.3]} 11... Ne8 {[%clk 0:03:01.2]} 12. e6 {[%clk 0:03:03.5]} 12... fxe6
{[%clk 0:03:00.8]} 13. Ng5 {[%clk 0:03:03.9]} 13... Nc7 {[%clk 0:02:58.5]} 14.
Qd6 {[%clk 0:02:37.5]} 14... Be5 {[%clk 0:02:46.6]} 15. Qe7 {[%clk 0:02:19.6]}
15... Bg7 {[%clk 0:02:45]} 16. Nxe6 {[%clk 0:02:16.3]} 16... Nxe6 {[%clk
0:02:46.1]} 17. Qxe6+ {[%clk 0:02:16.1]} 17... Kh8 {[%clk 0:02:46.8]} 18. Qb3
{[%clk 0:01:54.2]} 18... Ne5 {[%clk 0:02:39.5]} 19. Rd1 {[%clk 0:01:44.4]} 19...
c4 {[%clk 0:02:35.2]} 20. Qxb6 {[%clk 0:01:36.1]} 20... axb6 {[%clk 0:02:36.1]}
21. Be3 {[%clk 0:01:37.3]} 21... b5 {[%clk 0:02:30.2]} 22. Bd4 {[%clk
0:01:20.5]} 22... Nd3 {[%clk 0:02:29.1]} 23. Bxg7+ {[%clk 0:01:20.4]} 23... Kxg7
{[%clk 0:02:30.2]} 24. Rd2 {[%clk 0:01:21.8]} 24... Be6 {[%clk 0:02:24.1]} 25.
f4 {[%clk 0:01:20]} 25... b4 {[%clk 0:02:16.5]} 26. Ne2 {[%clk 0:01:18.9]} 26...
Rad8 {[%clk 0:02:10.2]} 27. Rad1 {[%clk 0:01:12.5]} 27... h5 {[%clk 0:02:08]}
28. b3 {[%clk 0:01:13]} 28... cxb3 {[%clk 0:01:56.2]} 29. axb3 {[%clk
0:01:10.7]} 29... Bxb3 {[%clk 0:01:54.3]} 30. Rb1 {[%clk 0:01:03.6]} 30... Bc4
{[%clk 0:01:53.4]} 31. Rbd1 {[%clk 0:00:58.6]} 31... Bb3 {[%clk 0:01:50.8]} 32.
Rb1 {[%clk 0:00:59.3]} 32... Bc4 {[%clk 0:01:41.3]} 33. e5 {[%clk 0:01:00]}
33... Nxf4 {[%clk 0:01:22.2]} 0-1

[Event "*** Titled Tuesday Blitz"]
[Site "Chess.com"]
[Date "2018.12.04"]
[Round "4"]
[White "Bad_left_hook"]
[Black "KRASAVCHIK2002"]
[Result "0-1"]
[WhiteElo "2499"]
[BlackElo "2374"]
[TimeControl "180+2"]
[EndTime "13:48:55 PST"]
[Termination "KRASAVCHIK2002 won by resignation"]

1. d4 {[%clk 0:03:00.5]} 1... Nf6 {[%clk 0:03:00.8]} 2. c4 {[%clk 0:03:01.8]}
2... c5 {[%clk 0:03:01.9]} 3. d5 {[%clk 0:03:02]} 3... b5 {[%clk 0:03:02.9]} 4.
cxb5 {[%clk 0:03:03]} 4... a6 {[%clk 0:03:04.4]} 5. bxa6 {[%clk 0:03:04.4]} 5...
g6 {[%clk 0:03:05.8]} 6. Nc3 {[%clk 0:03:04.2]} 6... Bg7 {[%clk 0:03:07]} 7. e4
{[%clk 0:03:04]} 7... O-O {[%clk 0:03:08.1]} 8. Bd3 {[%clk 0:03:04.5]} 8... Qa5
{[%clk 0:03:08.7]} 9. a7 {[%clk 0:03:02.9]} 9... Rxa7 {[%clk 0:03:05.9]} 10. Bd2
{[%clk 0:02:52.7]} 10... Ra8 {[%clk 0:02:59.2]} 11. e5 {[%clk 0:02:41.4]} 11...
Ne8 {[%clk 0:02:58.6]} 12. f4 {[%clk 0:02:38.8]} 12... Ba6 {[%clk 0:02:57.6]}
13. Bxa6 {[%clk 0:02:32.1]} 13... Qxa6 {[%clk 0:02:57.3]} 14. Nf3 {[%clk
0:02:31.9]} 14... d6 {[%clk 0:02:54.4]} 15. Qe2 {[%clk 0:02:28.2]} 15... Nd7
{[%clk 0:02:44.7]} 16. e6 {[%clk 0:01:58.3]} 16... Qxe2+ {[%clk 0:02:38.7]} 17.
Kxe2 {[%clk 0:01:59.1]} 17... fxe6 {[%clk 0:02:38.4]} 18. dxe6 {[%clk
0:01:59.4]} 18... Nb6 {[%clk 0:02:39.6]} 19. Rhe1 {[%clk 0:01:40.2]} 19... Nc7
{[%clk 0:02:24.9]} 20. Kf2 {[%clk 0:01:36.7]} 20... Rf6 {[%clk 0:02:16.4]} 21.
Ne4 {[%clk 0:01:04.6]} 21... Rff8 {[%clk 0:01:44.7]} 22. Nc3 {[%clk 0:00:50.8]}
22... Nc4 {[%clk 0:01:39.7]} 23. Bc1 {[%clk 0:00:51.3]} 23... Rfb8 {[%clk
0:01:20.1]} 24. Re2 {[%clk 0:00:45.3]} 24... Rb4 {[%clk 0:00:54.8]} 25. a3
{[%clk 0:00:30.5]} 25... Rb3 {[%clk 0:00:47]} 26. Ra2 {[%clk 0:00:27.4]} 26...
Bxc3 {[%clk 0:00:37.8]} 27. bxc3 {[%clk 0:00:29.3]} 27... Rxc3 {[%clk
0:00:39.3]} 28. a4 {[%clk 0:00:30.5]} 28... Rxc1 {[%clk 0:00:38.1]} 0-1

[Event "*** Titled Tuesday Blitz"]
[Site "Chess.com"]
[Date "2018.12.04"]
[Round "4"]
[White "Keaton87"]
[Black "Msb2"]
[Result "0-1"]
[WhiteElo "2523"]
[BlackElo "2741"]
[TimeControl "180+2"]
[EndTime "13:48:59 PST"]
[Termination "Msb2 won by checkmate"]

1. Nf3 {[%clk 0:03:01.9]} 1... d5 {[%clk 0:03:00.8]} 2. e3 {[%clk 0:03:02.5]}
2... Nf6 {[%clk 0:03:00.1]} 3. c4 {[%clk 0:03:03.6]} 3... e6 {[%clk 0:03:00.1]}
4. b3 {[%clk 0:03:03.5]} 4... c5 {[%clk 0:03:01.5]} 5. Bb2 {[%clk 0:03:02.1]}
5... Nc6 {[%clk 0:03:02]} 6. cxd5 {[%clk 0:02:58.3]} 6... exd5 {[%clk
0:03:03.9]} 7. d4 {[%clk 0:02:57.6]} 7... cxd4 {[%clk 0:03:03]} 8. Nxd4 {[%clk
0:02:58.6]} 8... Bb4+ {[%clk 0:03:04.6]} 9. Bc3 {[%clk 0:02:59]} 9... Qb6 {[%clk
0:03:05]} 10. Bxb4 {[%clk 0:02:41.5]} 10... Qxb4+ {[%clk 0:03:05.7]} 11. Qd2
{[%clk 0:02:42.8]} 11... Nxd4 {[%clk 0:03:07.1]} 12. exd4 {[%clk 0:02:41.9]}
12... Qe7+ {[%clk 0:03:07.1]} 13. Be2 {[%clk 0:02:19.5]} 13... Ne4 {[%clk
0:03:03.2]} 14. Qe3 {[%clk 0:02:13.9]} 14... Qb4+ {[%clk 0:02:39.1]} 15. Nd2
{[%clk 0:02:14.5]} 15... O-O {[%clk 0:02:40.1]} 16. f3 {[%clk 0:02:12.7]} 16...
Nf6 {[%clk 0:02:30.2]} 17. a3 {[%clk 0:01:40.7]} 17... Qa5 {[%clk 0:02:01.8]}
18. b4 {[%clk 0:01:39.1]} 18... Qc7 {[%clk 0:02:02.6]} 19. O-O {[%clk
0:01:18.1]} 19... Re8 {[%clk 0:02:03.7]} 20. Qd3 {[%clk 0:01:18.4]} 20... Bf5
{[%clk 0:02:04.9]} 21. Qxf5 {[%clk 0:01:18.3]} 21... Rxe2 {[%clk 0:02:06.6]} 22.
Rac1 {[%clk 0:01:10.9]} 22... Qe7 {[%clk 0:02:03.2]} 23. Rc8+ {[%clk 0:01:06.9]}
23... Rxc8 {[%clk 0:02:04.2]} 24. Qxc8+ {[%clk 0:01:08.8]} 24... Ne8 {[%clk
0:02:06]} 25. Qc3 {[%clk 0:01:00.2]} 25... Nd6 {[%clk 0:02:00.3]} 26. Rf2 {[%clk
0:00:59.8]} 26... h5 {[%clk 0:01:46.7]} 27. Rxe2 {[%clk 0:00:56.7]} 27... Qxe2
{[%clk 0:01:48.6]} 28. h3 {[%clk 0:00:53.9]} 28... g6 {[%clk 0:01:39.8]} 29. Kh2
{[%clk 0:00:51]} 29... Kg7 {[%clk 0:01:37.4]} 30. Nb3 {[%clk 0:00:39.5]} 30...
Nf5 {[%clk 0:01:38.6]} 31. Qc7 {[%clk 0:00:34.7]} 31... Ne3 {[%clk 0:01:28.8]}
32. Qe5+ {[%clk 0:00:35.4]} 32... Kh7 {[%clk 0:01:29.9]} 33. Kg3 {[%clk
0:00:19.9]} 33... Qxg2+ {[%clk 0:01:19.9]} 34. Kf4 {[%clk 0:00:21.1]} 34... Nc4
{[%clk 0:01:21.8]} 35. Qe7 {[%clk 0:00:12.1]} 35... Qh2+ {[%clk 0:01:19.1]} 36.
Kg5 {[%clk 0:00:11.9]} 36... Qg3+ {[%clk 0:01:20.7]} 37. Kf6 {[%clk 0:00:11.1]}
37... Qf4# {[%clk 0:01:22.4]} 0-1